bitfinex/quotes_ETHUSD_20240716
["timestamp","ask_amount","ask_price","bid_price","bid_amount"]
[1721111435421,0.60854283,3440.8,3440.4,1.243]
[1721111435623,0.60854283,3440.8,3440.6,4.1494]
[1721111435808,0.60854283,3440.9,3440.6,4.1494]
[1721111436125,4.38533788,3441.0,3440.6,4.1494]
[1721111436126,4.99388071,3441.0,3440.6,4.1494]
[1721111436428,0.60854283,3440.9,3440.7,2.90638]
[1721111436606,0.60854283,3440.9,3440.8,1.243]
[1721111436921,0.60854283,3441.0,3440.7,2.90638]
[1721111437126,0.60854283,3440.9,3440.7,2.90638]
[1721111438124,0.60854283,3440.9,3440.6,1.243]
[1721111438426,0.60854283,3440.8,3440.4,2.4674]
[1721111438633,0.60854283,3440.8,3440.5,2.90653]
[1721111438926,0.60854283,3440.8,3440.3,3.0]
[1721111439134,0.60854283,3440.7,3440.3,3.0]
[1721111439305,0.60854283,3440.6,3440.3,3.0]
[1721111440236,0.60854283,3440.5,3440.3,3.0]
[1721111440847,0.60854283,3440.5,3440.1,3.0]
[1721111441039,0.60854283,3440.4,3440.0,4.243]
[1721111442136,0.60854283,3440.4,3440.0,4.14996]
[1721111442296,0.60854283,3440.3,3439.8,3.0]
[1721111442498,0.60854283,3440.3,3439.5,2.3328]
[1721111442499,0.60854283,3440.1,3439.5,5.24012]
[1721111442732,0.60854283,3440.1,3439.7,1.243]
[1721111442733,0.66704238,3440.0,3439.7,1.243]
[1721111442897,0.60854283,3439.8,3439.7,1.243]
[1721111443412,0.60854283,3439.9,3439.7,1.243]
[1721111444917,0.60854283,3439.8,3439.7,1.243]
[1721111445319,0.91281425,3440.0,3439.5,3.0]
[1721111445320,0.91281425,3439.9,3439.6,1.243]
[1721111445624,0.60825718,3439.7,3439.6,1.243]
[1721111445820,0.60825718,3439.8,3439.6,1.243]
[1721111446270,0.60825718,3439.7,3439.6,1.243]
[1721111446413,0.60825718,3439.9,3439.6,2.248778]
[1721111446606,0.60825718,3440.0,3439.8,1.243]
[1721111447147,0.60825718,3439.9,3439.8,1.243]
[1721111447725,0.60825718,3440.0,3439.8,4.15014]
[1721111448270,0.60825718,3439.9,3439.8,4.15014]
[1721111449607,0.91281425,3440.0,3439.8,4.15014]
[1721111449807,0.91281425,3439.9,3439.6,4.15031]
[1721111450038,0.60850593,3439.7,3439.6,4.15031]
[1721111450950,0.60850593,3440.0,3439.9,2.90706]
[1721111451450,0.91286817,3440.1,3440.0,2.90695]
[1721111451614,0.91286817,3440.2,3440.1,1.243]
[1721111451813,0.91283832,3440.3,3440.1,1.243]
[1721111452225,0.91283832,3440.2,3440.1,1.243]
[1721111452711,1.21711776,3440.3,3440.1,1.243]
[1721111452913,0.91301236,3440.2,3440.1,1.243]
[1721111453114,0.25130006,3440.2,3440.1,1.243]
[1721111453356,1.46841782,3440.3,3440.1,1.243]
[1721111454751,1.46841782,3440.2,3440.1,1.243]
[1721111455118,1.21711776,3440.2,3440.1,1.243]
[1721111455323,0.25130006,3440.2,3440.1,1.243]
[1721111455530,0.91322374,3440.2,3440.1,1.243]
[1721111455735,1.46844471,3440.2,3440.1,1.243]
[1721111455918,1.21711776,3440.2,3440.1,1.243]
[1721111456541,0.25135567,3440.2,3440.1,1.243]
[1721111456740,1.46847343,3440.2,3440.1,1.243]
[1721111456939,0.25135567,3440.2,3440.1,1.243]
[1721111457147,0.25135567,3440.2,3440.1,4.14989]
[1721111458713,0.25135567,3440.2,3439.7,2.4676]
[1721111458913,0.91333485,3440.0,3439.8,1.243]
[1721111459154,0.91333485,3439.9,3439.8,4.15014]
[1721111459316,0.91333485,3440.0,3439.8,4.15014]
[1721111459514,0.91333485,3439.9,3439.8,4.15014]
[1721111460119,0.91333485,3440.0,3439.8,4.15014]
[1721111460315,0.91333485,3440.0,3439.9,2.90706]
[1721111460941,0.91331642,3440.0,3439.9,2.90706]
[1721111461145,0.91331642,3440.1,3439.9,2.90706]
[1721111461348,0.91331642,3440.1,3440.0,7.05694]
[1721111461552,1.21775523,3440.2,3440.1,2.90689]
[1721111461732,1.46911157,3440.2,3440.1,2.90689]
[1721111462231,1.46911157,3440.2,3440.0,1.243]
[1721111462432,0.25138154,3440.1,3440.0,1.243]
[1721111462741,0.9132662,3440.1,3440.0,4.14997]
[1721111463155,0.9132662,3440.1,3440.0,2.90697]
[1721111463527,0.9132662,3440.2,3440.0,2.90697]
[1721111463826,0.9132662,3440.1,3439.9,1.243]
[1721111464146,0.9132662,3440.1,3439.8,2.90713]
[1721111464147,0.9132662,3440.0,3439.8,2.90713]
[1721111465535,0.9132662,3440.0,3439.7,4.243]
[1721111465824,0.9132662,3440.0,3439.1,2.90768]
[1721111465825,0.9132662,3439.8,3438.9,2.90783]
[1721111466040,1.21775523,3440.0,3438.9,2.90783]
[1721111466041,0.60896461,3439.4,3439.1,1.243]
[1721111466254,0.60896461,3439.3,3439.1,1.243]
[1721111466571,0.60896461,3439.3,3439.0,2.90779]
[1721111466775,0.60896461,3439.3,3439.1,2.90767]
[1721111466944,0.60896461,3439.3,3439.2,1.243]
[1721111467137,0.60896461,3439.3,3439.2,7.0583]
[1721111467444,0.60896461,3439.5,3439.4,2.90748]
[1721111467639,0.60896461,3439.6,3439.5,2.90739]
[1721111467870,0.91344692,3439.6,3439.5,1.243]
[1721111468064,0.91344692,3439.6,3439.5,4.15039]
[1721111468252,1.46931091,3439.7,3439.5,4.15039]
[1721111468463,1.46931091,3439.6,3439.5,4.15039]
[1721111468780,0.25155568,3439.6,3439.5,4.15039]
[1721111468982,0.60913181,3439.6,3439.5,4.15039]
[1721111469277,1.21775523,3439.8,3439.6,2.90731]
[1721111469592,1.469376,3439.7,3439.5,1.243]
[1721111469764,0.25162077,3439.6,3439.5,1.243]
[1721111470246,1.469376,3439.6,3439.5,4.15039]
[1721111470775,0.25162077,3439.6,3439.5,4.15039]
[1721111470952,1.21882198,3439.7,3439.5,4.15039]
[1721111471155,1.47044275,3439.6,3439.5,4.15039]
[1721111471345,1.21882198,3439.6,3439.5,4.15039]
[1721111472346,0.25162077,3439.6,3439.5,4.15039]
[1721111472858,1.21882198,3439.7,3439.5,4.15039]
[1721111473390,1.47145097,3439.6,3439.5,4.15039]
[1721111473672,1.52352748,3439.7,3439.5,4.15039]
[1721111473876,0.25162077,3439.6,3439.5,4.15039]
[1721111474378,1.52468907,3439.7,3439.5,4.15039]
[1721111474579,1.52474222,3439.7,3439.5,4.15039]
[1721111474885,0.25162077,3439.6,3439.5,1.243]
[1721111475046,0.25162077,3439.6,3439.3,4.15051]
[1721111475047,0.29133976,3439.6,3439.3,4.15051]
[1721111475245,0.29133976,3439.6,3439.1,2.90768]
[1721111475246,1.21973265,3439.5,3439.1,2.90768]
[1721111475487,0.91480322,3439.3,3439.1,2.90768]
[1721111475777,0.97330277,3439.2,3438.6,2.90814]
[1721111475951,0.97330277,3439.2,3438.8,1.243]
[1721111475952,0.60990199,3438.9,3438.8,1.243]
[1721111476154,0.91485299,3439.0,3438.8,4.15099]
[1721111476570,0.91474014,3439.0,3438.9,2.9079]
[1721111476947,0.91474014,3439.1,3438.9,2.9079]
[1721111477182,0.60978284,3439.0,3438.9,5.8158]
[1721111477457,0.91474014,3439.1,3439.0,2.90782]
[1721111477666,0.25193104,3439.1,3438.9,2.90789]
[1721111477851,1.21973265,3439.2,3439.0,1.243]
[1721111478052,0.25194542,3439.1,3439.0,1.243]
[1721111478263,0.25194542,3439.1,3438.7,2.90805]
[1721111478264,1.21973265,3439.1,3438.8,1.243]
[1721111478470,0.91453253,3438.9,3438.8,1.243]
[1721111479174,0.91453253,3439.0,3438.8,1.243]
[1721111479370,0.91453253,3438.9,3438.8,1.243]
[1721111480091,2.2686,3438.9,3438.4,2.90828]
[1721111480393,0.91453253,3438.5,3438.3,4.1514]
[1721111480583,0.60952742,3438.4,3438.3,4.1514]
[1721111480947,0.91453253,3438.5,3438.3,4.1514]
[1721111481356,0.60938769,3438.4,3438.3,4.1514]
[1721111481685,0.91453253,3438.5,3438.3,4.1514]
[1721111481852,0.91453253,3438.5,3438.4,1.243]
[1721111482280,0.91453253,3438.6,3438.4,1.243]
[1721111482686,0.60924983,3438.5,3438.4,4.15128]
[1721111482895,0.60924167,3438.5,3438.4,4.15128]
[1721111483253,0.60924167,3438.6,3438.5,2.90824]
[1721111483479,0.60924167,3438.6,3438.5,7.05948]
[1721111484002,0.60916914,3438.6,3438.5,4.15124]
[1721111487020,0.999,3643.0,3438.7,2.90807]
[1721111487196,0.91369505,3438.8,3438.7,4.15107]
[1721111487609,0.25176029,3438.8,3438.7,4.15107]
[1721111487770,0.91364726,3438.8,3438.7,4.15107]
[1721111489517,0.91364726,3438.9,3438.7,4.15107]
[1721111489672,0.60895558,3438.8,3438.7,4.15107]
[1721111490102,0.60895558,3438.9,3438.8,2.90799]
[1721111490516,0.91333569,3439.1,3438.9,2.90787]
[1721111490685,0.91333569,3439.1,3438.9,4.15087]
[1721111491604,1.21778092,3439.2,3438.9,4.15087]
[1721111491605,0.91333569,3439.0,3438.9,4.15087]
[1721111492274,0.91333569,3439.0,3438.7,2.90807]
[1721111492275,1.21778092,3439.1,3438.7,4.15107]
[1721111492587,0.6088643,3438.8,3438.7,4.15107]
[1721111492788,0.91329645,3438.9,3438.7,1.243]
[1721111493111,0.60887125,3438.8,3438.6,2.90815]
[1721111493275,0.60887125,3438.8,3438.7,4.15107]
[1721111494323,0.60887125,3438.9,3438.7,4.15107]
[1721111494685,0.60887125,3438.9,3438.8,2.90799]
[1721111497589,0.60887125,3439.0,3438.8,2.90799]
[1721111497790,0.91329645,3439.0,3438.9,1.243]
[1721111498089,1.21778092,3439.1,3438.7,1.243]
[1721111498293,0.60890563,3438.8,3438.7,1.243]
[1721111499020,0.91335844,3438.9,3438.7,1.243]
[1721111499520,3.61128092,3439.1,3438.4,2.90832]
[1721111499521,0.91335844,3438.8,3438.4,2.90832]
[1721111499697,0.60896766,3438.6,3438.5,3.0]
[1721111500090,0.91335844,3438.7,3438.5,3.0]
[1721111500425,0.60899729,3438.6,3438.5,3.0]
[1721111500795,3.56808092,3438.6,3438.2,5.24289]
[1721111500990,0.60904316,3438.3,3438.2,5.24289]
[1721111501224,0.91356474,3438.4,3438.2,5.24289]
[1721111501524,0.60904533,3438.3,3438.2,5.24289]
[1721111502034,0.91356474,3438.4,3438.2,5.24289]
[1721111502247,0.91356474,3438.4,3438.2,8.24289]
[1721111502608,0.2518426,3438.5,3438.2,5.24289]
[1721111502609,0.91356474,3438.3,3438.2,5.24289]
[1721111502815,0.91356474,3438.3,3438.2,2.3344]
[1721111503426,0.91366747,3438.3,3438.2,2.3344]
[1721111503585,0.25185833,3438.5,3438.2,2.3344]
[1721111503791,0.91355682,3438.3,3438.2,2.3344]
[1721111503997,0.25186172,3438.3,3438.2,2.3344]
[1721111504199,6.72864748,3438.3,3438.2,2.3344]
[1721111504399,2.60216172,3438.3,3438.2,2.3344]
[1721111505825,3.82014424,3438.3,3438.2,2.3344]
[1721111506050,3.82009025,3438.3,3438.2,2.3344]
[1721111506229,2.60216172,3438.3,3438.2,2.3344]
[1721111507701,3.82009025,3438.3,3438.2,2.3344]
[1721111507901,2.60216172,3438.3,3438.2,2.3344]
[1721111508201,4.12418702,3438.3,3438.2,2.3344]
[1721111508431,4.41602061,3438.3,3438.2,2.3344]
[1721111509030,6.35337871,3438.3,3438.2,2.3344]
[1721111509234,5.80240531,3438.3,3438.2,2.3344]
[1721111509421,6.35335833,3438.3,3438.2,2.3344]
[1721111509731,5.80243206,3438.3,3438.2,2.3344]
[1721111511537,6.35329458,3438.3,3438.2,2.3344]
[1721111511921,5.80243206,3438.3,3438.2,2.3344]
[1721111512837,5.80244231,3438.3,3438.2,2.3344]
[1721111513339,8.10911678,3438.3,3438.2,2.3344]
[1721111513632,6.28273197,3438.3,3438.2,2.3344]
[1721111513827,8.10911678,3438.3,3438.2,2.3344]
[1721111515710,11.01752678,3438.3,3438.2,2.3344]
[1721111515921,8.89919988,3438.3,3438.2,2.3344]
[1721111516214,11.01718515,3438.3,3438.2,2.3344]
[1721111517335,9.19114501,3438.3,3438.2,1.92476621]
[1721111519127,11.32152518,3438.3,3438.2,1.92476621]
[1721111519326,9.66373887,3438.3,3438.2,1.92476621]
[1721111519531,9.1912164,3438.3,3438.2,1.92476621]
[1721111519840,12.0996264,3438.3,3438.2,1.92476621]
[1721111520143,15.0996264,3438.3,3438.2,0.97013965]
[1721111520860,16.72576604,3438.3,3438.2,0.97013965]
[1721111521734,18.85636818,3438.3,3438.2,0.97013965]
[1721111521916,18.85589704,3438.3,3438.2,0.97013965]
[1721111522238,16.72575612,3438.3,3438.2,0.97013965]
[1721111522618,18.85590343,3438.3,3438.2,0.97013965]
[1721111523146,23.24124131,3438.3,3438.2,0.97013965]
[1721111523850,12.294274,3438.3,3438.2,0.97013965]
[1721111524024,14.11977524,3438.3,3438.2,0.97013965]
[1721111524348,12.294274,3438.3,3438.2,0.97013965]
[1721111524511,11.91304919,3438.3,3438.2,0.97013965]
[1721111524712,11.62112776,3438.3,3438.2,0.97013965]
[1721111524909,11.43283085,3438.3,3438.2,0.97013965]
[1721111525337,11.86374181,3438.3,3438.2,0.97013965]
[1721111525647,11.43283085,3438.3,3438.2,0.97013965]
[1721111525848,11.86375171,3438.3,3438.2,0.97013965]
[1721111526098,21.31031721,3438.3,3438.2,0.97013965]
[1721111526219,16.8299532,3438.3,3438.2,0.97013965]
[1721111526409,17.20462462,3438.3,3438.2,0.97013965]
[1721111526608,14.77216171,3438.3,3438.2,0.97013965]
[1721111527312,14.48024046,3438.3,3438.2,0.97013965]
[1721111527511,14.77222721,3438.3,3438.2,0.97013965]
[1721111527918,17.68063721,3438.3,3438.2,0.97013965]
[1721111528126,17.64365046,3438.3,3438.2,0.8503479]
[1721111528450,19.81000627,3438.3,3438.2,0.8503479]
[1721111528757,19.81007315,3438.3,3438.2,0.8503479]
[1721111529759,19.18072346,3438.3,3438.2,0.8503479]
[1721111529973,24.31007315,3438.3,3438.2,0.44949382]
[1721111530112,25.08913346,3438.3,3438.2,0.39099427]
[1721111530511,25.63913346,3438.3,3438.2,0.39099427]
[1721111530762,27.11596718,3438.3,3438.2,0.39099427]
[1721111530915,25.62371726,3438.3,3438.2,0.39099427]
[1721111531122,26.86871726,3438.3,3438.2,0.39099427]
[1721111531527,27.70135081,3438.3,3438.2,4.27e-06]
[1721111531767,27.95927781,3438.3,3438.2,4.27e-06]
[1721111531939,28.25147229,3438.3,3438.2,4.27e-06]
[1721111532267,28.25148898,3438.3,3438.2,4.27e-06]
[1721111532437,30.76547919,3438.3,3438.2,4.27e-06]
[1721111532625,28.25148898,3438.3,3438.2,4.27e-06]
[1721111533170,30.76545314,3438.3,3438.2,4.27e-06]
[1721111534254,29.75148898,3438.3,3438.2,4.27e-06]
[1721111534463,32.26545314,3438.3,3438.2,4.27e-06]
[1721111535065,32.26472812,3438.3,3438.2,4.27e-06]
[1721111536773,2.90962,3436.9,3436.3,2.2975]
[1721111536923,0.60779618,3436.8,3436.3,2.2975]
[1721111538206,0.60786638,3436.8,3436.3,2.2975]
[1721111538369,3.51748638,3436.9,3436.3,2.2975]
[1721111538587,0.60786638,3436.8,3436.3,2.2975]
[1721111539615,3.51754638,3436.8,3436.3,2.2975]
[1721111539812,0.60786638,3436.6,3436.3,2.2975]
[1721111540029,0.60786638,3436.7,3436.3,2.65175]
[1721111540319,0.60786638,3436.9,3436.5,2.2619]
[1721111540812,0.60786638,3436.9,3436.4,1.245]
[1721111540813,0.60786638,3436.9,3436.6,1.245]
[1721111540964,8.51037064,3437.3,3435.6,2.2619]
[1721111540965,0.60786638,3437.0,3435.6,2.2619]
[1721111541319,0.60786638,3437.0,3436.9,2.2619]
[1721111541320,4.38533788,3437.0,3436.9,2.2619]
[1721111541458,2.96316638,3437.1,3435.6,2.4222]
[1721111541657,2.96316638,3437.1,3435.9,4.15537]
[1721111541658,0.60786638,3436.7,3435.9,4.15537]
[1721111541897,0.60786638,3436.7,3436.0,0.706597]
[1721111542097,0.91179957,3436.8,3436.2,2.4222]
[1721111542098,0.60786638,3436.6,3436.2,2.4222]
[1721111543862,0.60786638,3437.0,3436.6,5.36585]
[1721111544065,0.60786638,3437.0,3436.8,1.245]
[1721111544262,0.60786638,3437.2,3436.9,0.661075]
[1721111544460,0.6083363,3437.1,3436.9,0.661075]
[1721111545009,0.6083363,3437.2,3436.9,0.661075]
[1721111545193,0.6083363,3437.0,3436.9,0.661075]
[1721111546308,1.2166726,3437.3,3436.9,0.661075]
[1721111546309,0.91250445,3437.1,3436.9,0.661075]
[1721111546606,0.60875465,3437.1,3436.9,1.906075]
[1721111546906,1.2166726,3437.4,3437.1,2.3062]
[1721111546907,0.60875465,3437.3,3437.1,2.3062]
[1721111547072,0.60875465,3437.2,3437.1,3.5512]
[1721111547489,0.60875465,3437.3,3437.1,3.5512]
[1721111547713,0.60875465,3437.2,3437.1,4.31154185]
[1721111548200,0.91250445,3437.3,3437.1,4.31154185]
[1721111548796,0.91250445,3437.3,3437.1,3.06654185]
[1721111550114,0.91250445,3437.2,3437.1,1.70254185]
[1721111550285,0.91250445,3437.2,3437.1,2.94754185]
[1721111550484,0.91250445,3437.3,3437.1,2.94754185]
[1721111550688,0.91250445,3437.2,3437.1,2.94754185]
[1721111551186,0.91405882,3437.2,3437.1,2.94754185]
[1721111551822,0.60936526,3437.2,3437.1,2.94754185]
[1721111552024,0.91405882,3437.3,3437.1,2.1872]
[1721111552025,0.60936526,3437.3,3437.1,2.1872]
[1721111552223,0.60936526,3437.3,3437.2,2.90934]
[1721111552605,0.91405882,3437.3,3437.1,2.1872]
[1721111552953,0.91405882,3437.3,3437.1,5.0966]
[1721111553100,1.31788522,3437.4,3437.1,5.0966]
[1721111553101,0.91405882,3437.2,3437.1,5.0966]
[1721111553540,0.91405882,3437.2,3437.1,2.1872]
[1721111553910,0.91405882,3437.2,3437.1,5.09662]
[1721111554431,0.91405882,3437.2,3437.1,2.1872]
[1721111554634,1.21945413,3437.3,3437.1,1.245]
[1721111554800,0.10121665,3437.2,3437.1,1.245]
[1721111555001,1.21945413,3437.2,3437.1,1.245]
[1721111555298,1.21945413,3437.2,3436.9,4.15454]
[1721111555512,0.91475233,3437.1,3436.9,2.90954]
[1721111555723,0.91475233,3437.1,3437.0,1.245]
[1721111556109,0.91475233,3437.1,3437.0,4.15451]
[1721111556325,0.91475233,3437.1,3437.0,8.014995]
[1721111556653,0.60983377,3437.2,3437.1,2.90942]
[1721111556833,0.91475233,3437.3,3437.2,2.90934]
[1721111557340,1.21975695,3437.5,3437.3,2.90925]
[1721111557544,0.1012056,3437.4,3437.3,6.62045]
[1721111557831,0.91479497,3437.4,3437.3,7.7235345]
[1721111558703,0.60988122,3437.5,3437.4,2.90917]
[1721111558904,0.91479497,3437.6,3437.5,2.90909]
[1721111559235,0.91479497,3437.7,3437.5,2.90909]
[1721111559407,0.91479497,3437.7,3437.3,6.4785345]
[1721111559408,0.91479497,3437.7,3437.6,4.154]
[1721111559734,0.91479497,3437.8,3437.6,4.154]
[1721111560199,0.91479497,3437.7,3437.6,4.154]
[1721111560547,0.91479497,3437.7,3437.6,1.245]
[1721111560835,0.29195844,3437.7,3437.2,3.0]
[1721111561154,1.21964088,3437.4,3436.8,6.7084]
[1721111561334,1.62575834,3437.6,3436.8,5.4634]
[1721111561335,0.91487593,3437.0,3436.8,5.4634]
[1721111561511,0.91487593,3437.0,3436.8,9.61807]
[1721111561913,0.60993449,3436.9,3436.8,9.61807]
[1721111562239,0.60993449,3436.9,3436.8,5.4634]
[1721111562404,0.91487593,3437.0,3436.7,3.0]
[1721111562599,0.91487593,3437.0,3436.8,3.0]
[1721111563032,0.91487593,3437.0,3436.7,3.0]
[1721111563236,0.60997148,3436.8,3436.7,5.90976]
[1721111563648,2.3151,3437.5,3436.7,5.90976]
[1721111563836,0.6099745,3436.9,3436.8,2.90968]
[1721111564006,0.6099745,3436.9,3436.6,2.90981]
[1721111564203,0.91496175,3436.8,3436.3,2.91002]
[1721111564419,0.61002592,3436.6,3436.5,2.9099]
[1721111564723,0.61002592,3436.6,3436.4,0.55]
[1721111564724,0.61002592,3436.6,3436.4,2.91001]
[1721111565539,0.61002592,3436.5,3436.2,5.26995]
[1721111565848,0.61002592,3436.6,3436.5,2.90993]
[1721111566003,0.91496175,3436.7,3436.5,3.0]
[1721111566210,0.61005224,3436.6,3436.4,2.91002]
[1721111566404,0.91496175,3436.6,3436.5,3.0]
[1721111566835,0.91496175,3436.6,3436.2,5.3598]
[1721111567136,0.61006535,3436.5,3436.2,8.26997]
[1721111567316,0.61006535,3436.5,3436.4,2.91002]
[1721111567517,0.61006535,3436.5,3436.4,5.91002]
[1721111570347,0.91496175,3436.6,3436.4,5.91002]
[1721111570537,0.91496175,3436.7,3436.5,3.0]
[1721111571026,0.91496175,3436.6,3436.5,5.90993]
[1721111571547,0.91522625,3436.7,3436.5,5.90993]
[1721111571713,0.61012444,3436.6,3436.5,5.90993]
[1721111572241,0.91522625,3436.7,3436.5,5.90993]
[1721111572545,0.61012443,3436.6,3436.5,5.90993]
[1721111573544,0.6101552,3436.6,3436.5,5.90993]
[1721111573714,0.9152328,3436.7,3436.5,5.90993]
[1721111573914,0.9152328,3436.6,3436.5,5.90993]
[1721111574142,0.9152328,3436.7,3436.5,5.90993]
[1721111574316,0.9152328,3436.7,3436.6,2.90985]
[1721111574513,1.2203104,3436.8,3436.7,2.90976]
[1721111575050,1.2203104,3436.8,3436.6,3.0]
[1721111575548,1.32153602,3436.8,3436.6,3.0]
[1721111575752,0.10122562,3436.7,3436.6,3.0]
[1721111575954,1.2203104,3436.8,3436.6,3.0]
[1721111576252,1.2203104,3436.8,3436.4,3.0]
[1721111576460,0.91528662,3436.6,3436.4,5.91001]
[1721111576640,0.91528677,3436.6,3436.4,5.91001]
[1721111576845,0.61018357,3436.5,3436.4,5.91001]
[1721111577923,0.61018357,3436.5,3436.4,9.93802]
[1721111578139,0.91528677,3436.7,3436.6,2.90985]
[1721111578348,0.91528677,3436.7,3436.6,5.90985]
[1721111578742,1.22038236,3436.8,3436.6,5.90985]
[1721111578935,0.91529825,3436.7,3436.6,5.90985]
[1721111579147,1.22038236,3436.8,3436.6,5.90985]
[1721111579342,0.10122575,3436.7,3436.6,5.90985]
[1721111580053,0.91532221,3436.7,3436.6,5.90985]
[1721111582530,0.10122794,3436.7,3436.6,5.90985]
[1721111583050,0.91543702,3436.7,3436.6,5.90985]
[1721111584362,0.91543702,3436.7,3436.6,7.15485]
[1721111584561,1.22038236,3436.8,3436.7,2.90976]
[1721111587265,0.39334827,3436.8,3436.7,2.90976]
[1721111588332,0.10122231,3436.8,3436.7,2.90976]
[1721111588532,1.22110672,3436.8,3436.7,2.90976]
[1721111588789,0.10122231,3436.8,3436.7,2.90976]
[1721111589136,0.29213067,3436.8,3436.6,4.245]
[1721111589331,1.62787835,3436.7,3436.6,1.245]
[1721111589647,1.92000902,3436.7,3436.6,1.245]
[1721111590779,1.92000836,3436.7,3436.6,1.245]
[1721111591284,1.32244459,3436.7,3436.6,1.245]
[1721111591432,1.61458036,3436.7,3436.6,1.245]
[1721111591638,1.92001346,3436.7,3436.6,1.245]
[1721111591875,0.39335808,3436.7,3436.6,1.245]
[1721111592389,0.39336857,3436.7,3436.6,1.245]
[1721111593980,1.91988244,3436.7,3436.6,1.245]
[1721111594292,1.3224228,3436.7,3436.6,4.15485]
[1721111594439,0.10122231,3436.7,3436.6,8.409034]
[1721111594780,0.61051301,3436.9,3436.7,2.90976]
[1721111594990,0.61051301,3436.9,3436.8,10.61436]
[1721111595294,0.61051301,3437.0,3436.9,5.81918]
[1721111595437,4.38533788,3437.2,3437.1,5.81884]
[1721111595786,0.61037613,3437.3,3437.2,5.81868]
[1721111595936,0.91555559,3437.5,3437.3,2.90921]
[1721111596136,0.91555559,3437.5,3437.2,6.730697]
[1721111596137,0.91547875,3437.4,3437.2,3.0]
[1721111596370,1.81794665,3437.3,3436.9,3.45958]
[1721111596567,1.22076044,3437.1,3437.0,3.0]
[1721111596794,0.39327232,3437.1,3437.0,5.90951]
[1721111597081,1.32203946,3437.1,3437.0,5.90951]
[1721111597504,0.10120443,3437.1,3437.0,5.90951]
[1721111597643,1.22079812,3437.1,3437.0,5.90951]
[1721111597844,1.32200255,3437.1,3437.0,5.90951]
[1721111598488,1.62727267,3437.2,3437.0,3.0]
[1721111598682,0.10120443,3437.1,3437.0,3.0]
[1721111598877,0.29203431,3437.1,3437.0,3.0]
[1721111599060,0.91557852,3437.1,3437.0,3.0]
[1721111599253,1.22084194,3437.2,3437.0,5.90951]
[1721111599452,0.9155632,3437.1,3437.0,5.90951]
[1721111599653,1.22084194,3437.1,3437.0,5.90951]
[1721111600065,1.32205779,3437.1,3437.0,5.90951]
[1721111601282,0.91558961,3437.1,3437.0,5.90951]
[1721111601582,0.91555876,3437.1,3437.0,5.90951]
[1721111601783,0.10121164,3437.1,3437.0,3.0]
[1721111601982,1.22084194,3437.2,3437.1,2.90942]
[1721111602490,1.22084194,3437.2,3437.0,3.0]
[1721111602491,1.81793853,3437.2,3437.0,5.9095]
[1721111602683,1.3220405,3437.1,3437.0,5.9095]
[1721111603183,1.22082879,3437.1,3437.0,5.9095]
[1721111603361,1.3220405,3437.1,3437.0,5.9095]
[1721111603747,1.32210951,3437.1,3437.0,5.9095]
[1721111604064,1.61415193,3437.1,3437.0,5.9095]
[1721111604263,0.39325413,3437.1,3437.0,5.9095]
[1721111604860,0.10121171,3437.1,3437.0,5.9095]
[1721111605071,0.39325399,3437.1,3437.0,5.9095]
[1721111605290,0.39325399,3437.1,3436.2,2.91017]
[1721111605599,0.61072256,3436.3,3436.2,5.82036]
[1721111606319,0.91608384,3436.4,3436.3,2.9101]
[1721111606666,1.5268064,3436.6,3436.4,2.91002]
[1721111606993,1.5268064,3436.6,3436.5,3.0]
[1721111607168,1.9202214,3436.6,3436.5,3.0]
[1721111608063,1.61535206,3436.6,3436.5,3.0]
[1721111608275,0.39340528,3436.6,3436.5,3.0]
[1721111608469,0.39337821,3436.6,3436.5,3.0]
[1721111608867,1.92079395,3436.6,3436.5,3.0]
[1721111609068,0.39337821,3436.6,3436.5,3.0]
[1721111610232,1.22188586,3436.7,3436.6,2.90985]
[1721111610383,0.39332706,3436.7,3436.6,5.90985]
[1721111611247,0.10122559,3436.7,3436.6,8.8197]
[1721111611363,1.52732574,3436.8,3436.7,2.90976]
[1721111611567,0.39332393,3436.8,3436.7,2.90976]
[1721111612069,1.92064967,3436.8,3436.7,2.90976]
[1721111612771,0.39332393,3436.8,3436.7,2.90976]
[1721111612973,1.81946626,3436.8,3436.7,2.90976]
[1721111613168,1.92069038,3436.8,3436.7,2.90976]
[1721111613368,1.92069038,3436.8,3436.5,2.90988]
[1721111613611,1.52744323,3436.6,3436.5,2.90988]
[1721111613772,1.52744323,3436.6,3436.5,5.90988]
[1721111613773,0.39332393,3436.6,3436.5,5.90988]
[1721111613982,1.52744323,3436.7,3436.6,2.90985]
[1721111614196,0.39333666,3436.7,3436.6,2.90985]
[1721111614515,0.39332289,3436.7,3436.6,2.90985]
[1721111614715,1.92076612,3436.7,3436.6,2.90985]
[1721111614875,1.92074152,3436.7,3436.6,2.90985]
[1721111615076,0.39332289,3436.7,3436.6,2.90985]
[1721111615404,1.32307487,3436.7,3436.6,2.90985]
[1721111615812,0.9163325,3436.7,3436.6,9.960685]
[1721111616025,1.32306909,3436.7,3436.6,4.140985]
[1721111616330,0.10121958,3436.7,3436.6,6.960685]
[1721111616488,1.22184951,3436.7,3436.6,12.263785]
[1721111616693,0.61083522,3437.3,3437.2,8.12178]
[1721111616918,1.22167045,3437.6,3437.3,3.55]
[1721111616919,0.610719,3437.6,3437.3,3.55]
[1721111617229,4.99605688,3438.1,3438.0,5.81732]
[1721111617436,0.610719,3438.1,3438.0,8.81732]
[1721111617628,13.82551377,3438.6,3438.4,2.90832]
[1721111617860,0.2916641,3438.5,3438.4,2.90832]
[1721111618155,13.82551377,3438.6,3438.5,2.90824]
[1721111618156,13.51957936,3438.6,3438.5,2.90824]
[1721111618432,12.59167609,3438.6,3438.5,2.90824]
[1721111618922,12.59167609,3438.6,3438.5,5.81648]
[1721111619224,12.90931575,3438.6,3438.5,5.81648]
[1721111619395,12.90931575,3438.6,3438.5,8.81648]
[1721111619396,12.3,3438.6,3438.5,8.81648]
[1721111619729,12.3,3438.6,3438.5,11.80548]
[1721111620037,0.91397363,3438.9,3438.5,11.80548]
[1721111620038,0.60931575,3438.9,3438.8,5.81598]
[1721111620233,0.60931575,3439.0,3438.9,2.9079]
[1721111620400,0.60931575,3439.0,3438.7,2.90803]